fUSD/lending_fUSD_20260625
["ID","MTS","AMOUNT","RATE_DAILY","PERIOD"]
[426409389,1782355853000,-289.16,0.0003,2]
[426409404,1782355853000,-10000.0,0.0003,2]
[426409406,1782355853000,-200.0,0.0003,2]
[426409401,1782355853000,-1792.696862,0.0003,7]
[426409400,1782355853000,-1792.696862,0.0003,7]
[426409409,1782355853000,-2000.0,0.0003,7]
[426409399,1782355853000,-1792.696862,0.0003,7]
[426409407,1782355853000,-200.0,0.0003,2]
[426409402,1782355853000,-151.0,0.0003,7]
[426409403,1782355853000,-1117.02,0.0003,2]
[426409405,1782355853000,-200.0,0.0003,2]
[426409408,1782355853000,-200.0,0.0003,2]
[426409379,1782355853000,-1000.0,0.0003,2]
[426409386,1782355853000,-10000.0,0.0003,2]
[426409355,1782355853000,-11509.21876402,0.000299,2]
[426409383,1782355853000,-827.15231792,0.0003,3]
[426409356,1782355853000,-11509.21876402,0.000299,2]
[426409358,1782355853000,-11509.21876402,0.000299,2]
[426409354,1782355853000,-11509.21876402,0.000299,2]
[426409350,1782355853000,-11509.21876402,0.000299,2]
[426409353,1782355853000,-11509.21876402,0.000299,2]
[426409359,1782355853000,-11509.21876402,0.000299,2]
[426409361,1782355853000,-172.290922,0.000299,7]
[426409381,1782355853000,-1020.0,0.0003,2]
[426409362,1782355853000,-676.20876552,0.00029926,2]
[426409365,1782355853000,-1736.26,0.00029982,2]
[426409369,1782355853000,-78732.70425481,0.0003,7]
[426409363,1782355853000,-205.56,0.00029931,2]
[426409370,1782355853000,-78732.70425481,0.0003,7]
[426409368,1782355853000,-800.0,0.0003,2]
[426409372,1782355853000,-537.58,0.0003,7]
[426409366,1782355853000,-242.34598232,0.0002999,2]
[426409374,1782355853000,-275.80052475,0.0003,2]
[426409380,1782355853000,-2609.25130078,0.0003,2]
[426409375,1782355853000,-263.07518562,0.0003,2]
[426409377,1782355853000,-1128.74746178,0.0003,2]
[426409378,1782355853000,-1858.50181529,0.0003,2]
[426409382,1782355853000,-650.0,0.0003,2]
[426409373,1782355853000,-286.1342387,0.0003,2]
[426409371,1782355853000,-159.36,0.0003,7]
[426409364,1782355853000,-299.26,0.00029931,2]
[426409367,1782355853000,-250.0,0.00029996,7]
[426409376,1782355853000,-1116.58009416,0.0003,2]
[426409456,1782355854000,-2000.0,0.00030136,2]
[426409454,1782355854000,-2000.0,0.00030136,2]
[426409449,1782355854000,-2000.0,0.00030136,2]
[426409445,1782355854000,-2000.0,0.00030136,2]
[426409448,1782355854000,-2000.0,0.00030136,2]
[426409444,1782355854000,-2000.0,0.00030136,2]
[426409442,1782355854000,-2000.0,0.00030136,2]
[426409436,1782355854000,-2000.0,0.00030136,2]
[426409443,1782355854000,-2000.0,0.00030136,2]
[426409433,1782355854000,-2000.0,0.00030136,2]
[426409439,1782355854000,-2000.0,0.00030136,2]
[426409450,1782355854000,-2000.0,0.00030136,2]
[426409457,1782355854000,-2000.0,0.00030136,2]
[426409453,1782355854000,-2000.0,0.00030136,2]
[426409446,1782355854000,-2000.0,0.00030136,2]
[426409452,1782355854000,-2000.0,0.00030136,2]
[426409447,1782355854000,-2000.0,0.00030136,2]
[426409455,1782355854000,-2000.0,0.00030136,2]
[426409461,1782355854000,-2000.0,0.00030136,2]
[426409458,1782355854000,-2000.0,0.00030136,2]
[426409467,1782355854000,-2000.0,0.00030136,2]
[426409463,1782355854000,-2000.0,0.00030136,2]
[426409462,1782355854000,-2000.0,0.00030136,2]
[426409459,1782355854000,-2000.0,0.00030136,2]
[426409437,1782355854000,-2000.0,0.00030136,2]
[426409451,1782355854000,-2000.0,0.00030136,2]
[426409441,1782355854000,-2000.0,0.00030136,2]
[426409430,1782355854000,-2000.0,0.00030136,2]
[426409438,1782355854000,-2000.0,0.00030136,2]
[426409465,1782355854000,-2000.0,0.00030136,2]
[426409410,1782355854000,-484.652096,0.00030009,7]
[426409420,1782355854000,-5961.0,0.00030109,10]
[426409411,1782355854000,-1397.6006571,0.00030064,2]
[426409412,1782355854000,-611.0,0.00030067,3]
[426409413,1782355854000,-873152.0,0.0003008,20]
[426409415,1782355854000,-151.0,0.0003008,7]
[426409414,1782355854000,-151.0,0.0003008,7]
[426409417,1782355854000,-162.062628,0.0003008,7]
[426409419,1782355854000,-152.0,0.00030091,5]
[426409418,1782355854000,-151.0,0.0003008,7]
[426409416,1782355854000,-151.0,0.0003008,7]
[426409424,1782355854000,-2000.0,0.00030136,2]
[426409421,1782355854000,-2000.0,0.00030136,2]
[426409423,1782355854000,-2000.0,0.00030136,2]
[426409428,1782355854000,-2000.0,0.00030136,2]
[426409429,1782355854000,-2000.0,0.00030136,2]
[426409432,1782355854000,-2000.0,0.00030136,2]
[426409422,1782355854000,-2000.0,0.00030136,2]
[426409431,1782355854000,-2000.0,0.00030136,2]
[426409427,1782355854000,-2000.0,0.00030136,2]
[426409425,1782355854000,-2000.0,0.00030136,2]
[426409426,1782355854000,-2000.0,0.00030136,2]
[426409440,1782355854000,-2000.0,0.00030136,2]
[426409434,1782355854000,-2000.0,0.00030136,2]
[426409435,1782355854000,-2000.0,0.00030136,2]
[426409460,1782355854000,-2000.0,0.00030136,2]
[426409466,1782355854000,-2000.0,0.00030136,2]
[426409469,1782355854000,-2000.0,0.00030136,2]
[426409497,1782355854000,-500.0,0.00030374,2]
[426409500,1782355854000,-500.0,0.00030374,2]
[426409496,1782355854000,-500.0,0.00030374,2]
[426409499,1782355854000,-500.0,0.00030374,2]
[426409504,1782355854000,-500.0,0.00030374,2]
[426409513,1782355854000,-200.0,0.00030374,2]
[426409502,1782355854000,-500.0,0.00030374,2]
[426409507,1782355854000,-500.0,0.00030374,2]
[426409506,1782355854000,-500.0,0.00030374,2]
[426409512,1782355854000,-200.0,0.00030374,2]
[426409510,1782355854000,-200.0,0.00030374,2]
[426409508,1782355854000,-595.0,0.00030374,2]
[426409494,1782355854000,-500.0,0.00030374,2]
[426409509,1782355854000,-200.0,0.00030374,2]
[426409503,1782355854000,-500.0,0.00030374,2]
[426409523,1782355854000,-200.0,0.00030374,2]
[426409514,1782355854000,-200.0,0.00030374,2]
[426409519,1782355854000,-200.0,0.00030374,2]
[426409520,1782355854000,-200.0,0.00030374,2]
[426409521,1782355854000,-200.0,0.00030374,2]
[426409516,1782355854000,-200.0,0.00030374,2]
[426409515,1782355854000,-200.0,0.00030374,2]
[426409517,1782355854000,-200.0,0.00030374,2]
[426409518,1782355854000,-200.0,0.00030374,2]
[426409464,1782355854000,-2000.0,0.00030136,2]
[426409522,1782355854000,-200.0,0.00030374,2]
[426409511,1782355854000,-200.0,0.00030374,2]
[426409498,1782355854000,-500.0,0.00030374,2]
[426409505,1782355854000,-500.0,0.00030374,2]
[426409495,1782355854000,-500.0,0.00030374,2]
[426409468,1782355854000,-2000.0,0.00030136,2]
[426409490,1782355854000,-200.0,0.00030255,2]
[426409472,1782355854000,-2000.0,0.00030136,2]
[426409471,1782355854000,-2000.0,0.00030136,2]
[426409470,1782355854000,-2000.0,0.00030136,2]
[426409477,1782355854000,-2000.0,0.00030136,2]
[426409476,1782355854000,-2000.0,0.00030136,2]
[426409475,1782355854000,-2000.0,0.00030136,2]
[426409473,1782355854000,-2000.0,0.00030136,2]
[426409484,1782355854000,-186.0,0.00030137,2]
[426409479,1782355854000,-944.33,0.00030137,2]
[426409487,1782355854000,-186145.2054189,0.00030149,2]
[426409482,1782355854000,-257.0,0.00030137,2]
[426409474,1782355854000,-2000.0,0.00030136,2]
[426409492,1782355854000,-500.0,0.00030374,2]
[426409493,1782355854000,-500.0,0.00030374,2]
[426409478,1782355854000,-1722.49173411,0.00030136,2]
[426409501,1782355854000,-500.0,0.00030374,2]
[426409491,1782355854000,-10000.0,0.00030333,2]
[426409488,1782355854000,-1211.0,0.00030172,2]
[426409486,1782355854000,-2291.3694802,0.00030149,2]
[426409483,1782355854000,-235.0,0.00030137,2]
[426409485,1782355854000,-676.20876552,0.00030137,2]
[426409480,1782355854000,-313.94731256,0.00030137,2]
[426409489,1782355854000,-484.652096,0.00030246,7]
[426409481,1782355854000,-281.0,0.00030137,2]
[426409572,1782355855000,-500.0,0.00030507,7]
[426409563,1782355855000,-500.0,0.00030507,7]
[426409565,1782355855000,-500.0,0.00030507,7]
[426409566,1782355855000,-168.45,0.00030507,7]
[426409562,1782355855000,-500.0,0.00030507,7]
[426409554,1782355855000,-153.82289,0.000305,8]
[426409557,1782355855000,-500.0,0.00030507,7]
[426409555,1782355855000,-500.0,0.00030507,2]
[426409558,1782355855000,-500.0,0.00030507,7]
[426409559,1782355855000,-500.0,0.00030507,7]
[426409564,1782355855000,-500.0,0.00030507,7]
[426409561,1782355855000,-500.0,0.00030507,7]
[426409570,1782355855000,-500.0,0.00030507,7]
[426409586,1782355855000,-500.0,0.00030507,7]
[426409569,1782355855000,-500.0,0.00030507,7]
[426409573,1782355855000,-500.0,0.00030507,7]
[426409568,1782355855000,-500.0,0.00030507,7]
[426409567,1782355855000,-287.94,0.00030507,7]
[426409582,1782355855000,-500.0,0.00030507,7]
[426409575,1782355855000,-500.0,0.00030507,7]
[426409577,1782355855000,-500.0,0.00030507,7]
[426409578,1782355855000,-500.0,0.00030507,7]
[426409583,1782355855000,-500.0,0.00030507,7]
[426409581,1782355855000,-500.0,0.00030507,7]
[426409585,1782355855000,-500.0,0.00030507,7]
[426409580,1782355855000,-500.0,0.00030507,7]
[426409556,1782355855000,-276.46865901,0.00030507,2]
[426409571,1782355855000,-500.0,0.00030507,7]
[426409553,1782355855000,-1502.725761,0.000305,6]
[426409527,1782355855000,-200.0,0.00030374,2]
[426409552,1782355855000,-2000.0,0.000305,2]
[426409579,1782355855000,-500.0,0.00030507,7]
[426409524,1782355855000,-200.0,0.00030374,2]
[426409525,1782355855000,-200.0,0.00030374,2]
[426409526,1782355855000,-200.0,0.00030374,2]
[426409528,1782355855000,-200.0,0.00030374,2]
[426409529,1782355855000,-200.0,0.00030374,2]
[426409530,1782355855000,-200.0,0.00030374,2]
[426409532,1782355855000,-200.0,0.00030374,2]
[426409536,1782355855000,-200.0,0.00030374,2]
[426409531,1782355855000,-200.0,0.00030374,2]
[426409535,1782355855000,-200.0,0.00030374,2]
[426409533,1782355855000,-200.0,0.00030374,2]
[426409534,1782355855000,-200.0,0.00030374,2]
[426409551,1782355855000,-800.0,0.000305,2]
[426409538,1782355855000,-200.0,0.00030374,2]
[426409541,1782355855000,-200.0,0.00030374,2]
[426409543,1782355855000,-200.0,0.00030374,2]
[426409542,1782355855000,-200.0,0.00030374,2]
[426409540,1782355855000,-200.0,0.00030374,2]
[426409537,1782355855000,-200.0,0.00030374,2]
[426409547,1782355855000,-9017.0,0.00030444,5]
[426409545,1782355855000,-200.0,0.00030374,2]
[426409548,1782355855000,-8999.0,0.00030444,5]
[426409546,1782355855000,-188.0,0.00030374,2]
[426409544,1782355855000,-200.0,0.00030374,2]
[426409560,1782355855000,-500.0,0.00030507,7]
[426409550,1782355855000,-150.0,0.00030499,2]
[426409549,1782355855000,-484.652096,0.00030482,7]
[426409539,1782355855000,-200.0,0.00030374,2]
[426409584,1782355855000,-500.0,0.00030507,7]
[426409638,1782355855000,-500.0,0.00030507,7]
[426409574,1782355855000,-500.0,0.00030507,7]
[426409617,1782355855000,-500.0,0.00030507,7]
[426409616,1782355855000,-500.0,0.00030507,7]
[426409622,1782355855000,-500.0,0.00030507,7]
[426409613,1782355855000,-500.0,0.00030507,7]
[426409623,1782355855000,-500.0,0.00030507,7]
[426409625,1782355855000,-500.0,0.00030507,7]
[426409635,1782355855000,-500.0,0.00030507,7]
[426409636,1782355855000,-500.0,0.00030507,7]
[426409624,1782355855000,-500.0,0.00030507,7]
[426409626,1782355855000,-500.0,0.00030507,7]
[426409627,1782355855000,-500.0,0.00030507,7]
[426409628,1782355855000,-500.0,0.00030507,7]
[426409630,1782355855000,-500.0,0.00030507,7]
[426409619,1782355855000,-500.0,0.00030507,7]
[426409629,1782355855000,-500.0,0.00030507,7]
[426409634,1782355855000,-500.0,0.00030507,7]
[426409632,1782355855000,-500.0,0.00030507,7]
[426409631,1782355855000,-500.0,0.00030507,7]
[426409645,1782355855000,-500.0,0.00030507,7]
[426409641,1782355855000,-500.0,0.00030507,7]
[426409642,1782355855000,-500.0,0.00030507,7]
[426409637,1782355855000,-500.0,0.00030507,7]
[426409646,1782355855000,-500.0,0.00030507,7]
[426409643,1782355855000,-500.0,0.00030507,7]
[426409644,1782355855000,-500.0,0.00030507,7]
[426409639,1782355855000,-500.0,0.00030507,7]
[426409640,1782355855000,-500.0,0.00030507,7]
[426409576,1782355855000,-500.0,0.00030507,7]
[426409633,1782355855000,-500.0,0.00030507,7]
[426409618,1782355855000,-500.0,0.00030507,7]
[426409647,1782355855000,-500.0,0.00030507,7]
[426409620,1782355855000,-500.0,0.00030507,7]
[426409621,1782355855000,-500.0,0.00030507,7]
[426409595,1782355855000,-500.0,0.00030507,7]
[426409594,1782355855000,-505.65,0.00030507,7]
[426409589,1782355855000,-500.0,0.00030507,7]
[426409587,1782355855000,-500.0,0.00030507,7]
[426409596,1782355855000,-500.0,0.00030507,7]
[426409588,1782355855000,-500.0,0.00030507,7]
[426409591,1782355855000,-500.0,0.00030507,7]
[426409593,1782355855000,-500.0,0.00030507,7]
[426409599,1782355855000,-500.0,0.00030507,7]
[426409590,1782355855000,-500.0,0.00030507,7]
[426409598,1782355855000,-500.0,0.00030507,7]
[426409597,1782355855000,-500.0,0.00030507,7]
[426409601,1782355855000,-500.0,0.00030507,7]
[426409592,1782355855000,-500.0,0.00030507,7]
[426409600,1782355855000,-500.0,0.00030507,7]
[426409614,1782355855000,-500.0,0.00030507,7]
[426409615,1782355855000,-500.0,0.00030507,7]
[426409612,1782355855000,-500.0,0.00030507,7]
[426409609,1782355855000,-500.0,0.00030507,7]
[426409611,1782355855000,-500.0,0.00030507,7]
[426409610,1782355855000,-500.0,0.00030507,7]
[426409607,1782355855000,-500.0,0.00030507,7]
[426409608,1782355855000,-500.0,0.00030507,7]
[426409605,1782355855000,-500.0,0.00030507,7]
[426409603,1782355855000,-500.0,0.00030507,7]
[426409602,1782355855000,-500.0,0.00030507,7]
[426409604,1782355855000,-500.0,0.00030507,7]
[426409606,1782355855000,-500.0,0.00030507,7]
[426409689,1782355856000,-500.0,0.00030507,7]
[426409691,1782355856000,-343.95,0.00030507,7]
[426409682,1782355856000,-500.0,0.00030507,7]
[426409679,1782355856000,-500.0,0.00030507,7]
[426409678,1782355856000,-500.0,0.00030507,7]
[426409684,1782355856000,-500.0,0.00030507,7]
[426409686,1782355856000,-500.0,0.00030507,7]
[426409680,1782355856000,-500.0,0.00030507,7]
[426409681,1782355856000,-500.0,0.00030507,7]
[426409685,1782355856000,-500.0,0.00030507,7]
[426409683,1782355856000,-500.0,0.00030507,7]
[426409706,1782355856000,-251.0,0.0003069,2]
[426409692,1782355856000,-500.0,0.00030507,7]
[426409699,1782355856000,-9999.98,0.00030667,2]
[426409690,1782355856000,-500.0,0.00030507,7]
[426409693,1782355856000,-684.0,0.00030507,5]
[426409696,1782355856000,-768.05,0.00030592,7]
[426409694,1782355856000,-200.0,0.0003057,2]
[426409697,1782355856000,-186.98,0.00030596,14]
[426409695,1782355856000,-611.0,0.00030587,4]
[426409711,1782355856000,-350.0,0.00030763,6]
[426409701,1782355856000,-251.0,0.0003069,2]
[426409700,1782355856000,-251.0,0.0003069,2]
[426409705,1782355856000,-251.0,0.0003069,2]
[426409702,1782355856000,-251.0,0.0003069,2]
[426409688,1782355856000,-500.0,0.00030507,7]
[426409698,1782355856000,-4000.0,0.00030628,3]
[426409676,1782355856000,-500.0,0.00030507,7]
[426409664,1782355856000,-500.0,0.00030507,7]
[426409677,1782355856000,-500.0,0.00030507,7]
[426409648,1782355856000,-500.0,0.00030507,7]
[426409649,1782355856000,-500.0,0.00030507,7]
[426409652,1782355856000,-517.22,0.00030507,7]
[426409662,1782355856000,-500.0,0.00030507,7]
[426409654,1782355856000,-500.0,0.00030507,7]
[426409659,1782355856000,-500.0,0.00030507,7]
[426409658,1782355856000,-500.0,0.00030507,7]
[426409650,1782355856000,-500.0,0.00030507,7]
[426409651,1782355856000,-500.0,0.00030507,7]
[426409657,1782355856000,-500.0,0.00030507,7]
[426409660,1782355856000,-500.0,0.00030507,7]
[426409661,1782355856000,-500.0,0.00030507,7]
[426409653,1782355856000,-500.0,0.00030507,7]
[426409656,1782355856000,-500.0,0.00030507,7]
[426409655,1782355856000,-500.0,0.00030507,7]
[426409665,1782355856000,-500.0,0.00030507,7]
[426409663,1782355856000,-500.0,0.00030507,7]
[426409673,1782355856000,-500.0,0.00030507,7]
[426409672,1782355856000,-500.0,0.00030507,7]
[426409667,1782355856000,-500.0,0.00030507,7]
[426409668,1782355856000,-500.0,0.00030507,7]
[426409670,1782355856000,-500.0,0.00030507,7]
[426409671,1782355856000,-500.0,0.00030507,7]
[426409669,1782355856000,-500.0,0.00030507,7]
[426409675,1782355856000,-500.0,0.00030507,7]
[426409666,1782355856000,-500.0,0.00030507,7]
[426409674,1782355856000,-500.0,0.00030507,7]
[426409687,1782355856000,-500.0,0.00030507,7]
[426409704,1782355856000,-251.0,0.0003069,2]
[426409721,1782355856000,-484.652096,0.00030955,7]
[426409703,1782355856000,-251.0,0.0003069,2]
[426409740,1782355856000,-1271.55828653,0.00031032,2]
[426409741,1782355856000,-1374.68578483,0.00031032,2]
[426409747,1782355856000,-152.198524,0.0003104,7]
[426409739,1782355856000,-1493.96710757,0.00031032,2]
[426409746,1782355856000,-296.767751,0.0003104,7]
[426409744,1782355856000,-151.0,0.0003104,7]
[426409745,1782355856000,-151.0,0.0003104,7]
[426409759,1782355856000,-1431.96589654,0.00031087,2]
[426409748,1782355856000,-1792.696862,0.0003104,7]
[426409750,1782355856000,-1792.696862,0.0003104,7]
[426409755,1782355856000,-1282.86700462,0.00031075,2]
[426409756,1782355856000,-350.0,0.00031082,6]
[426409743,1782355856000,-151.0,0.0003104,7]
[426409757,1782355856000,-1434.32000445,0.00031086,2]
[426409749,1782355856000,-1792.696862,0.0003104,7]
[426409754,1782355856000,-151.0,0.0003104,7]
[426409758,1782355856000,-1356.35061121,0.00031086,2]
[426409753,1782355856000,-151.0,0.0003104,7]
[426409762,1782355856000,-1608.95756175,0.00031087,2]
[426409763,1782355856000,-2658.37595536,0.00031087,2]
[426409765,1782355856000,-2048.43331641,0.00031087,2]
[426409760,1782355856000,-1241.22933502,0.00031087,2]
[426409766,1782355856000,-2517.85312011,0.00031087,2]
[426409764,1782355856000,-1991.34200237,0.00031087,2]
[426409761,1782355856000,-1239.27972077,0.00031087,2]
[426409707,1782355856000,-251.0,0.0003069,2]
[426409751,1782355856000,-1792.69687,0.0003104,7]
[426409742,1782355856000,-873152.0,0.0003104,20]
[426409752,1782355856000,-151.0,0.0003104,7]
[426409738,1782355856000,-1407.04192091,0.00031032,2]
[426409737,1782355856000,-251.0,0.0003102,2]
[426409709,1782355856000,-484.652096,0.00030718,7]
[426409708,1782355856000,-153.82289,0.000307,8]
[426409715,1782355856000,-1643.86914357,0.0003084,2]
[426409723,1782355856000,-800.0,0.00031,2]
[426409720,1782355856000,-200.0,0.00030911,2]
[426409722,1782355856000,-800.0,0.00031,2]
[426409712,1782355856000,-350.0,0.00030765,5]
[426409714,1782355856000,-537.58,0.000308,7]
[426409719,1782355856000,-153.8229,0.000309,8]
[426409716,1782355856000,-692.20971306,0.00030871,6]
[426409713,1782355856000,-159.36,0.000308,7]
[426409717,1782355856000,-150.0,0.00030877,2]
[426409718,1782355856000,-151.0,0.00030879,2]
[426409710,1782355856000,-150.22821583,0.00030737,2]
[426409734,1782355856000,-251.0,0.0003102,2]
[426409730,1782355856000,-2110.0,0.00031007,2]
[426409728,1782355856000,-1000.0,0.00031,7]
[426409736,1782355856000,-251.0,0.0003102,2]
[426409735,1782355856000,-251.0,0.0003102,2]
[426409732,1782355856000,-251.0,0.0003102,2]
[426409725,1782355856000,-20189.63784101,0.00031,14]
[426409731,1782355856000,-251.0,0.0003102,2]
[426409724,1782355856000,-800.0,0.00031,2]
[426409733,1782355856000,-251.0,0.0003102,2]
[426409729,1782355856000,-1500.0,0.00031,6]
[426409727,1782355856000,-914.45,0.00031,7]
[426409726,1782355856000,-800.0,0.00031,2]
[426409809,1782355857000,-200.0,0.000315,10]
[426409802,1782355857000,-744.29,0.00031483,7]
[426409801,1782355857000,-412.49982659,0.0003147,2]
[426409815,1782355857000,-1000.0,0.000315,7]
[426409805,1782355857000,-800.0,0.000315,2]
[426409800,1782355857000,-886.25977904,0.0003147,2]
[426409803,1782355857000,-800.0,0.000315,2]
[426409808,1782355857000,-800.0,0.000315,2]
[426409796,1782355857000,-211.66748362,0.0003143,2]
[426409806,1782355857000,-201.51599788,0.000315,2]
[426409799,1782355857000,-175.42733258,0.00031468,2]
[426409810,1782355857000,-889.0,0.000315,2]
[426409804,1782355857000,-800.0,0.000315,2]
[426409814,1782355857000,-1000.0,0.000315,7]
[426409821,1782355857000,-310.0,0.000315,2]
[426409813,1782355857000,-1000.0,0.000315,7]
[426409812,1782355857000,-1000.0,0.000315,7]
[426409819,1782355857000,-1000.0,0.000315,7]
[426409811,1782355857000,-1000.0,0.000315,7]
[426409818,1782355857000,-1000.0,0.000315,7]
[426409820,1782355857000,-405.36,0.000315,7]
[426409817,1782355857000,-1000.0,0.000315,7]
[426409826,1782355857000,-316.0,0.000315,2]
[426409823,1782355857000,-1000.0,0.000315,2]
[426409822,1782355857000,-2000.0,0.000315,2]
[426409831,1782355857000,-153.0,0.000315,4]
[426409833,1782355857000,-153.0,0.000315,4]
[426409816,1782355857000,-1000.0,0.000315,7]
[426409797,1782355857000,-211.66748362,0.0003143,2]
[426409770,1782355857000,-1321.14963384,0.00031087,2]
[426409798,1782355857000,-211.66748361,0.0003143,2]
[426409824,1782355857000,-501.3429424,0.000315,2]
[426409767,1782355857000,-1777.3959517,0.00031087,2]
[426409769,1782355857000,-1506.79828062,0.00031087,2]
[426409768,1782355857000,-1733.4829622,0.00031087,2]
[426409780,1782355857000,-194.11716475,0.00031199,2]
[426409781,1782355857000,-200.0,0.0003122,2]
[426409772,1782355857000,-153.82289,0.000311,8]
[426409773,1782355857000,-611.0,0.00031108,4]
[426409777,1782355857000,-313.408046,0.00031191,7]
[426409782,1782355857000,-150.0,0.00031233,2]
[426409783,1782355857000,-500.0,0.00031233,15]
[426409775,1782355857000,-385.73298,0.00031191,7]
[426409776,1782355857000,-484.652104,0.00031191,7]
[426409807,1782355857000,-150.0,0.000315,2]
[426409774,1782355857000,-633.0,0.00031167,5]
[426409771,1782355857000,-10053.189974,0.000311,7]
[426409794,1782355857000,-200.0,0.00031407,2]
[426409786,1782355857000,-200.0,0.0003132,2]
[426409787,1782355857000,-251.0,0.0003135,2]
[426409789,1782355857000,-251.0,0.0003135,2]
[426409795,1782355857000,-211.66748362,0.0003143,2]
[426409784,1782355857000,-445.87451703,0.00031233,15]
[426409788,1782355857000,-251.0,0.0003135,2]
[426409785,1782355857000,-153.8229,0.000313,8]
[426409791,1782355857000,-251.0,0.0003135,2]
[426409790,1782355857000,-251.0,0.0003135,2]
[426409793,1782355857000,-1738.28908697,0.00031407,2]
[426409792,1782355857000,-251.0,0.0003135,2]
[426409779,1782355857000,-1000.0,0.00031193,2]
[426409825,1782355857000,-1500.0,0.000315,6]
[426409778,1782355857000,-469.147669,0.00031191,7]
[426409830,1782355857000,-153.0,0.000315,4]
[426409861,1782355857000,-1000.0,0.00031506,7]
[426409870,1782355857000,-186.434051,0.00031507,7]
[426409866,1782355857000,-153.753495,0.00031507,7]
[426409860,1782355857000,-155.57,0.00031506,7]
[426409859,1782355857000,-153.0,0.000315,4]
[426409865,1782355857000,-152.99091,0.00031507,7]
[426409867,1782355857000,-151.0,0.00031507,7]
[426409868,1782355857000,-286.483114,0.00031507,7]
[426409875,1782355857000,-160.940141,0.00031507,7]
[426409882,1782355857000,-151.0,0.00031507,7]
[426409878,1782355857000,-151.0,0.00031507,7]
[426409873,1782355857000,-152.583229,0.00031507,7]
[426409880,1782355857000,-271.405606,0.00031507,7]
[426409862,1782355857000,-154.17,0.00031506,7]
[426409888,1782355857000,-268.705098,0.00031507,7]
[426409877,1782355857000,-151.0,0.00031507,7]
[426409874,1782355857000,-151.0,0.00031507,7]
[426409876,1782355857000,-153.727213,0.00031507,7]
[426409881,1782355857000,-151.0,0.00031507,7]
[426409872,1782355857000,-153.691296,0.00031507,7]
[426409883,1782355857000,-151.0,0.00031507,7]
[426409884,1782355857000,-152.851942,0.00031507,7]
[426409887,1782355857000,-155.235897,0.00031507,7]
[426409889,1782355857000,-151.0,0.00031507,7]
[426409890,1782355857000,-152.901667,0.00031507,7]
[426409886,1782355857000,-151.0,0.00031507,7]
[426409885,1782355857000,-151.0,0.00031507,7]
[426409827,1782355857000,-783.36659886,0.000315,2]
[426409879,1782355857000,-151.0,0.00031507,7]
[426409864,1782355857000,-310.75,0.00031507,25]
[426409871,1782355857000,-151.0,0.00031507,7]
[426409863,1782355857000,-224.46,0.00031506,7]
[426409869,1782355857000,-170.266639,0.00031507,7]
[426409828,1782355857000,-175.0,0.000315,4]
[426409829,1782355857000,-153.0,0.000315,4]
[426409838,1782355857000,-153.0,0.000315,4]
[426409839,1782355857000,-153.0,0.000315,4]